Workbook

Sheet Budžet za venčanje
B2: LIDIJA + DANIJEL VENČANJE
B5: KATEGORIJA | C5: PROCENJENI TROŠKOVI | D5: STVARNI TROŠKOVI | E5: ODSTUPANJE | F5: PROCENAT BUDŽETA | J5: Nije sortirano | K5: Procenjeni troškovi | L5: Stvarni troškovi | M5: Procenjeni troškovi – stepen vrednosti | N5: Stepen | O5: # | P5: Sortirano
B6: =P6 -> Prijem | C6: =VLOOKUP(TBL_Rezime[[#This Row],[KATEGORIJA]],TBL_RangiranjePodataka,2,FALSE) -> 14,500 RSD | D6: =IF(VLOOKUP(TBL_Rezime[[#This Row],[KATEGORIJA]],TBL_RangiranjePodataka,3,FALSE)=0,"",VLOOKUP(TBL_Rezime[[#This Row],[KATEGORIJA]],TBL_RangiranjePodataka,3,FALSE)) -> 12,800 RSD | E6: =IF(OR(TBL_Rezime[[#This Row],[PROCENJENI TROŠKOVI]]="",TBL_Rezime[[#This Row],[STVARNI TROŠKOVI]]=""),"",TBL_Rezime[[#This Row],[PROCENJENI TROŠKOVI]]-TBL_Rezime[[#This Row],[STVARNI TROŠKOVI]]) -> 1,700 RSD | F6: =TBL_Rezime[[#This Row],[PROCENJENI TROŠKOVI]]/SUM(TBL_Rezime[PROCENJENI TROŠKOVI]) -> 48.7% | J6: Prijem | K6: =TBL_Prijem[[#Totals],[PROCENJENO]] -> 14500 | L6: =TBL_Prijem[[#Totals],[STVARNO]] -> 12800 | M6: =K6-O6/100 -> 14499.99 | N6: =_xlfn.RANK.AVG(M6,$M$6:$M$15) -> 1 | O6: 1 | P6: =INDEX(TBL_RangiranjePodataka,MATCH(O6,$N$6:$N$15,0),1) -> Prijem
B7: =P7 -> Svečano odelo | C7: =VLOOKUP(TBL_Rezime[[#This Row],[KATEGORIJA]],TBL_RangiranjePodataka,2,FALSE) -> 4,000 RSD | D7: =IF(VLOOKUP(TBL_Rezime[[#This Row],[KATEGORIJA]],TBL_RangiranjePodataka,3,FALSE)=0,"",VLOOKUP(TBL_Rezime[[#This Row],[KATEGORIJA]],TBL_RangiranjePodataka,3,FALSE)) -> 2,900 RSD | E7: =IF(OR(TBL_Rezime[[#This Row],[PROCENJENI TROŠKOVI]]="",TBL_Rezime[[#This Row],[STVARNI TROŠKOVI]]=""),"",TBL_Rezime[[#This Row],[PROCENJENI TROŠKOVI]]-TBL_Rezime[[#This Row],[STVARNI TROŠKOVI]]) -> 1,100 RSD | F7: =TBL_Rezime[[#This Row],[PROCENJENI TROŠKOVI]]/SUM(TBL_Rezime[PROCENJENI TROŠKOVI]) -> 13.4% | J7: Svečano odelo | K7: =TBL_SvečanoOdelo[[#Totals],[PROCENJENO]] -> 4000 | L7: =TBL_SvečanoOdelo[[#Totals],[STVARNO]] -> 2900 | M7: =K7-O7/100 -> 3999.98 | N7: 2 | O7: 2 | P7: Svečano odelo
B8: Cveće i ukrasi | C8: =VLOOKUP(TBL_Rezime[[#This Row],[KATEGORIJA]],TBL_RangiranjePodataka,2,FALSE) -> 3,000 RSD | D8: =IF(VLOOKUP(TBL_Rezime[[#This Row],[KATEGORIJA]],TBL_RangiranjePodataka,3,FALSE)=0,"",VLOOKUP(TBL_Rezime[[#This Row],[KATEGORIJA]],TBL_RangiranjePodataka,3,FALSE)) ->  | E8: =IF(OR(TBL_Rezime[[#This Row],[PROCENJENI TROŠKOVI]]="",TBL_Rezime[[#This Row],[STVARNI TROŠKOVI]]=""),"",TBL_Rezime[[#This Row],[PROCENJENI TROŠKOVI]]-TBL_Rezime[[#This Row],[STVARNI TROŠKOVI]]) ->  | F8: =TBL_Rezime[[#This Row],[PROCENJENI TROŠKOVI]]/SUM(TBL_Rezime[PROCENJENI TROŠKOVI]) -> 10.1% | J8: Cveće i ukrasi | K8: =TBL_CvećeIUkrasi[[#Totals],[PROCENJENO]] -> 3000 | L8: =TBL_CvećeIUkrasi[[#Totals],[STVARNO]] -> 0 | M8: 2999.97 | N8: 3 | O8: 3 | P8: Cveće i ukrasi
B9: Fotografije i video | C9: =VLOOKUP(TBL_Rezime[[#This Row],[KATEGORIJA]],TBL_RangiranjePodataka,2,FALSE) -> 2,500 RSD | D9: =IF(VLOOKUP(TBL_Rezime[[#This Row],[KATEGORIJA]],TBL_RangiranjePodataka,3,FALSE)=0,"",VLOOKUP(TBL_Rezime[[#This Row],[KATEGORIJA]],TBL_RangiranjePodataka,3,FALSE)) ->  | E9: =IF(OR(TBL_Rezime[[#This Row],[PROCENJENI TROŠKOVI]]="",TBL_Rezime[[#This Row],[STVARNI TROŠKOVI]]=""),"",TBL_Rezime[[#This Row],[PROCENJENI TROŠKOVI]]-TBL_Rezime[[#This Row],[STVARNI TROŠKOVI]]) ->  | F9: =TBL_Rezime[[#This Row],[PROCENJENI TROŠKOVI]]/SUM(TBL_Rezime[PROCENJENI TROŠKOVI]) -> 8.4% | J9: Muzika | K9: =TBL_Muzika[[#Totals],[PROCENJENO]] -> 1800 | L9: =TBL_Muzika[[#Totals],[STVARNO]] -> 0 | M9: 1799.96 | N9: 5 | O9: 4 | P9: Fotografije i video
B10: Muzika | C10: =VLOOKUP(TBL_Rezime[[#This Row],[KATEGORIJA]],TBL_RangiranjePodataka,2,FALSE) -> 1,800 RSD | D10: =IF(VLOOKUP(TBL_Rezime[[#This Row],[KATEGORIJA]],TBL_RangiranjePodataka,3,FALSE)=0,"",VLOOKUP(TBL_Rezime[[#This Row],[KATEGORIJA]],TBL_RangiranjePodataka,3,FALSE)) ->  | E10: =IF(OR(TBL_Rezime[[#This Row],[PROCENJENI TROŠKOVI]]="",TBL_Rezime[[#This Row],[STVARNI TROŠKOVI]]=""),"",TBL_Rezime[[#This Row],[PROCENJENI TROŠKOVI]]-TBL_Rezime[[#This Row],[STVARNI TROŠKOVI]]) ->  | F10: =TBL_Rezime[[#This Row],[PROCENJENI TROŠKOVI]]/SUM(TBL_Rezime[PROCENJENI TROŠKOVI]) -> 6.1% | J10: Fotografije i video | K10: =TBL_FotografijeIVideoZapisi[[#Totals],[PROCENJENO]] -> 2500 | L10: =TBL_FotografijeIVideoZapisi[[#Totals],[STVARNO]] -> 0 | M10: 2499.95 | N10: 4 | O10: 5 | P10: Muzika
B11: Usluge i pokloni | C11: =VLOOKUP(TBL_Rezime[[#This Row],[KATEGORIJA]],TBL_RangiranjePodataka,2,FALSE) -> 1,100 RSD | D11: =IF(VLOOKUP(TBL_Rezime[[#This Row],[KATEGORIJA]],TBL_RangiranjePodataka,3,FALSE)=0,"",VLOOKUP(TBL_Rezime[[#This Row],[KATEGORIJA]],TBL_RangiranjePodataka,3,FALSE)) ->  | E11: =IF(OR(TBL_Rezime[[#This Row],[PROCENJENI TROŠKOVI]]="",TBL_Rezime[[#This Row],[STVARNI TROŠKOVI]]=""),"",TBL_Rezime[[#This Row],[PROCENJENI TROŠKOVI]]-TBL_Rezime[[#This Row],[STVARNI TROŠKOVI]]) ->  | F11: =TBL_Rezime[[#This Row],[PROCENJENI TROŠKOVI]]/SUM(TBL_Rezime[PROCENJENI TROŠKOVI]) -> 3.7% | J11: Usluge i pokloni | K11: =TBL_SuveniriIPokloni[[#Totals],[PROCENJENO]] -> 1100 | L11: =TBL_SuveniriIPokloni[[#Totals],[STVARNO]] -> 0 | M11: 1099.94 | N11: 6 | O11: 6 | P11: Usluge i pokloni
B12: =P12 -> Burme | C12: =VLOOKUP(TBL_Rezime[[#This Row],[KATEGORIJA]],TBL_RangiranjePodataka,2,FALSE) -> 1,100 RSD | D12: =IF(VLOOKUP(TBL_Rezime[[#This Row],[KATEGORIJA]],TBL_RangiranjePodataka,3,FALSE)=0,"",VLOOKUP(TBL_Rezime[[#This Row],[KATEGORIJA]],TBL_RangiranjePodataka,3,FALSE)) ->  | E12: =IF(OR(TBL_Rezime[[#This Row],[PROCENJENI TROŠKOVI]]="",TBL_Rezime[[#This Row],[STVARNI TROŠKOVI]]=""),"",TBL_Rezime[[#This Row],[PROCENJENI TROŠKOVI]]-TBL_Rezime[[#This Row],[STVARNI TROŠKOVI]]) ->  | F12: =TBL_Rezime[[#This Row],[PROCENJENI TROŠKOVI]]/SUM(TBL_Rezime[PROCENJENI TROŠKOVI]) -> 3.7% | J12: Ceremonija | K12: =TBL_Ceremonija[[#Totals],[PROCENJENO]] -> 800 | L12: =TBL_Ceremonija[[#Totals],[STVARNO]] -> 0 | M12: 799.93 | N12: 8 | O12: 7 | P12: Burme
B13: Ceremonija | C13: =VLOOKUP(TBL_Rezime[[#This Row],[KATEGORIJA]],TBL_RangiranjePodataka,2,FALSE) -> 800 RSD | D13: =IF(VLOOKUP(TBL_Rezime[[#This Row],[KATEGORIJA]],TBL_RangiranjePodataka,3,FALSE)=0,"",VLOOKUP(TBL_Rezime[[#This Row],[KATEGORIJA]],TBL_RangiranjePodataka,3,FALSE)) ->  | E13: =IF(OR(TBL_Rezime[[#This Row],[PROCENJENI TROŠKOVI]]="",TBL_Rezime[[#This Row],[STVARNI TROŠKOVI]]=""),"",TBL_Rezime[[#This Row],[PROCENJENI TROŠKOVI]]-TBL_Rezime[[#This Row],[STVARNI TROŠKOVI]]) ->  | F13: =TBL_Rezime[[#This Row],[PROCENJENI TROŠKOVI]]/SUM(TBL_Rezime[PROCENJENI TROŠKOVI]) -> 2.7% | J13: Podloga za pisanje | K13: =TBL_Pribor[[#Totals],[PROCENJENO]] -> 500 | L13: =TBL_Pribor[[#Totals],[STVARNO]] -> 0 | M13: 499.92 | N13: 9 | O13: 8 | P13: Ceremonija
B14: Podloga za pisanje | C14: =VLOOKUP(TBL_Rezime[[#This Row],[KATEGORIJA]],TBL_RangiranjePodataka,2,FALSE) -> 500 RSD | D14: =IF(VLOOKUP(TBL_Rezime[[#This Row],[KATEGORIJA]],TBL_RangiranjePodataka,3,FALSE)=0,"",VLOOKUP(TBL_Rezime[[#This Row],[KATEGORIJA]],TBL_RangiranjePodataka,3,FALSE)) ->  | E14: =IF(OR(TBL_Rezime[[#This Row],[PROCENJENI TROŠKOVI]]="",TBL_Rezime[[#This Row],[STVARNI TROŠKOVI]]=""),"",TBL_Rezime[[#This Row],[PROCENJENI TROŠKOVI]]-TBL_Rezime[[#This Row],[STVARNI TROŠKOVI]]) ->  | F14: =TBL_Rezime[[#This Row],[PROCENJENI TROŠKOVI]]/SUM(TBL_Rezime[PROCENJENI TROŠKOVI]) -> 1.7% | J14: Burme | K14: =TBL_Burme[[#Totals],[PROCENJENO]] -> 1100 | L14: =TBL_Burme[[#Totals],[STVARNO]] -> 0 | M14: 1099.91 | N14: 7 | O14: 9 | P14: Podloga za pisanje
B15: Prevoz | C15: =VLOOKUP(TBL_Rezime[[#This Row],[KATEGORIJA]],TBL_RangiranjePodataka,2,FALSE) -> 450 RSD | D15: =IF(VLOOKUP(TBL_Rezime[[#This Row],[KATEGORIJA]],TBL_RangiranjePodataka,3,FALSE)=0,"",VLOOKUP(TBL_Rezime[[#This Row],[KATEGORIJA]],TBL_RangiranjePodataka,3,FALSE)) ->  | E15: =IF(OR(TBL_Rezime[[#This Row],[PROCENJENI TROŠKOVI]]="",TBL_Rezime[[#This Row],[STVARNI TROŠKOVI]]=""),"",TBL_Rezime[[#This Row],[PROCENJENI TROŠKOVI]]-TBL_Rezime[[#This Row],[STVARNI TROŠKOVI]]) ->  | F15: =TBL_Rezime[[#This Row],[PROCENJENI TROŠKOVI]]/SUM(TBL_Rezime[PROCENJENI TROŠKOVI]) -> 1.5% | J15: Prevoz | K15: =TBL_Prevoz[[#Totals],[PROCENJENO]] -> 450 | L15: =TBL_Prevoz[[#Totals],[STVARNO]] -> 0 | M15: 449.9 | N15: 10 | O15: 10 | P15: Prevoz
B16: Zbir | C16: =SUBTOTAL(109,TBL_Rezime[PROCENJENI TROŠKOVI]) -> 29,750 RSD | D16: =SUBTOTAL(109,TBL_Rezime[STVARNI TROŠKOVI]) -> 15,700 RSD | E16: =TBL_Rezime[[#Totals],[PROCENJENI TROŠKOVI]]-TBL_Rezime[[#Totals],[STVARNI TROŠKOVI]] -> 14,050 RSD | F16: =SUBTOTAL(109,TBL_Rezime[PROCENAT BUDŽETA]) -> 100%

Sheet Detalji o budžetu
B2: DETALJI O BUDŽETU
B4: PRIJEM | C4: PROCENJENO | D4: STVARNO | E4: ODSTUPANJE
B5: Mesto i iznajmljivanje | C5: 8,000 RSD | D5: 7,800 RSD | E5: =IF(OR(TBL_Prijem[[#This Row],[PROCENJENO]]="",TBL_Prijem[[#This Row],[STVARNO]]=""),"",TBL_Prijem[[#This Row],[PROCENJENO]]-TBL_Prijem[[#This Row],[STVARNO]]) -> 200 RSD
B6: Hrana i usluga | C6: 4,000 RSD | D6: 4,200 RSD | E6: =IF(OR(TBL_Prijem[[#This Row],[PROCENJENO]]="",TBL_Prijem[[#This Row],[STVARNO]]=""),"",TBL_Prijem[[#This Row],[PROCENJENO]]-TBL_Prijem[[#This Row],[STVARNO]]) -> -200 RSD
B7: Pića | C7: 1,000 RSD | D7: 800 RSD | E7: =IF(OR(TBL_Prijem[[#This Row],[PROCENJENO]]="",TBL_Prijem[[#This Row],[STVARNO]]=""),"",TBL_Prijem[[#This Row],[PROCENJENO]]-TBL_Prijem[[#This Row],[STVARNO]]) -> 200 RSD
B8: Torta | C8: 1,000 RSD | E8: =IF(OR(TBL_Prijem[[#This Row],[PROCENJENO]]="",TBL_Prijem[[#This Row],[STVARNO]]=""),"",TBL_Prijem[[#This Row],[PROCENJENO]]-TBL_Prijem[[#This Row],[STVARNO]]) -> 
B9: Razni troškovi | C9: 500 RSD | E9: =IF(OR(TBL_Prijem[[#This Row],[PROCENJENO]]="",TBL_Prijem[[#This Row],[STVARNO]]=""),"",TBL_Prijem[[#This Row],[PROCENJENO]]-TBL_Prijem[[#This Row],[STVARNO]]) -> 
B10: UKUPNO ZA PRIJEM | C10: =SUBTOTAL(109,TBL_Prijem[PROCENJENO]) -> 14,500 RSD | D10: =SUBTOTAL(109,TBL_Prijem[STVARNO]) -> 12,800 RSD | E10: =TBL_Prijem[[#Totals],[PROCENJENO]]-TBL_Prijem[[#Totals],[STVARNO]] -> 1,700 RSD
B13: SVEČANO ODELO | C13: PROCENJENO | D13: STVARNO | E13: ODSTUPANJE
B14: Smoking, odelo i/ili haljine | C14: 3,000 RSD | D14: 2,900 RSD | E14: =IF(OR(TBL_SvečanoOdelo[[#This Row],[PROCENJENO]]="",TBL_SvečanoOdelo[[#This Row],[STVARNO]]=""),"",TBL_SvečanoOdelo[[#This Row],[PROCENJENO]]-TBL_SvečanoOdelo[[#This Row],[STVARNO]]) -> 100 RSD
B15: Prepravke | C15: 100 RSD | E15: =IF(OR(TBL_SvečanoOdelo[[#This Row],[PROCENJENO]]="",TBL_SvečanoOdelo[[#This Row],[STVARNO]]=""),"",TBL_SvečanoOdelo[[#This Row],[PROCENJENO]]-TBL_SvečanoOdelo[[#This Row],[STVARNO]]) -> 
B16: Tijara i veo | C16: 200 RSD | E16: =IF(OR(TBL_SvečanoOdelo[[#This Row],[PROCENJENO]]="",TBL_SvečanoOdelo[[#This Row],[STVARNO]]=""),"",TBL_SvečanoOdelo[[#This Row],[PROCENJENO]]-TBL_SvečanoOdelo[[#This Row],[STVARNO]]) -> 
B17: Modni dodaci | C17: 100 RSD | E17: =IF(OR(TBL_SvečanoOdelo[[#This Row],[PROCENJENO]]="",TBL_SvečanoOdelo[[#This Row],[STVARNO]]=""),"",TBL_SvečanoOdelo[[#This Row],[PROCENJENO]]-TBL_SvečanoOdelo[[#This Row],[STVARNO]]) -> 
B18: Frizura i šminka | C18: 500 RSD | E18: =IF(OR(TBL_SvečanoOdelo[[#This Row],[PROCENJENO]]="",TBL_SvečanoOdelo[[#This Row],[STVARNO]]=""),"",TBL_SvečanoOdelo[[#This Row],[PROCENJENO]]-TBL_SvečanoOdelo[[#This Row],[STVARNO]]) -> 
B19: Razni troškovi | C19: 100 RSD | E19: =IF(OR(TBL_SvečanoOdelo[[#This Row],[PROCENJENO]]="",TBL_SvečanoOdelo[[#This Row],[STVARNO]]=""),"",TBL_SvečanoOdelo[[#This Row],[PROCENJENO]]-TBL_SvečanoOdelo[[#This Row],[STVARNO]]) -> 
B20: UKUPNO ZA SVEČANO ODELO | C20: =SUBTOTAL(109,TBL_SvečanoOdelo[PROCENJENO]) -> 4,000 RSD | D20: =SUBTOTAL(109,TBL_SvečanoOdelo[STVARNO]) -> 2,900 RSD | E20: =TBL_SvečanoOdelo[[#Totals],[PROCENJENO]]-TBL_SvečanoOdelo[[#Totals],[STVARNO]] -> 1,100 RSD
B23: CVEĆE I UKRASI | C23: PROCENJENO | D23: STVARNO | E23: ODSTUPANJE
B24: Cvetni aranžmani za ceremoniju | C24: 1,000 RSD | E24: =IF(OR(TBL_CvećeIUkrasi[[#This Row],[PROCENJENO]]="",TBL_CvećeIUkrasi[[#This Row],[STVARNO]]=""),"",TBL_CvećeIUkrasi[[#This Row],[PROCENJENO]]-TBL_CvećeIUkrasi[[#This Row],[STVARNO]]) -> 
B25: Cvetni pupoljci i korpa za devojčicu koja nosi cveće | C25: 500 RSD | E25: =IF(OR(TBL_CvećeIUkrasi[[#This Row],[PROCENJENO]]="",TBL_CvećeIUkrasi[[#This Row],[STVARNO]]=""),"",TBL_CvećeIUkrasi[[#This Row],[PROCENJENO]]-TBL_CvećeIUkrasi[[#This Row],[STVARNO]]) -> 
B26: Jastučić za burme | C26: 100 RSD | E26: =IF(OR(TBL_CvećeIUkrasi[[#This Row],[PROCENJENO]]="",TBL_CvećeIUkrasi[[#This Row],[STVARNO]]=""),"",TBL_CvećeIUkrasi[[#This Row],[PROCENJENO]]-TBL_CvećeIUkrasi[[#This Row],[STVARNO]]) -> 
B27: Buketi | C27: 500 RSD | E27: =IF(OR(TBL_CvećeIUkrasi[[#This Row],[PROCENJENO]]="",TBL_CvećeIUkrasi[[#This Row],[STVARNO]]=""),"",TBL_CvećeIUkrasi[[#This Row],[PROCENJENO]]-TBL_CvećeIUkrasi[[#This Row],[STVARNO]]) -> 
B28: Kićenje | C28: 100 RSD | E28: =IF(OR(TBL_CvećeIUkrasi[[#This Row],[PROCENJENO]]="",TBL_CvećeIUkrasi[[#This Row],[STVARNO]]=""),"",TBL_CvećeIUkrasi[[#This Row],[PROCENJENO]]-TBL_CvećeIUkrasi[[#This Row],[STVARNO]]) -> 
B29: Korseti | C29: 200 RSD | E29: =IF(OR(TBL_CvećeIUkrasi[[#This Row],[PROCENJENO]]="",TBL_CvećeIUkrasi[[#This Row],[STVARNO]]=""),"",TBL_CvećeIUkrasi[[#This Row],[PROCENJENO]]-TBL_CvećeIUkrasi[[#This Row],[STVARNO]]) -> 
B30: Prijemni ukrasi | C30: 300 RSD | E30: =IF(OR(TBL_CvećeIUkrasi[[#This Row],[PROCENJENO]]="",TBL_CvećeIUkrasi[[#This Row],[STVARNO]]=""),"",TBL_CvećeIUkrasi[[#This Row],[PROCENJENO]]-TBL_CvećeIUkrasi[[#This Row],[STVARNO]]) -> 
B31: Rasveta | C31: 200 RSD | E31: =IF(OR(TBL_CvećeIUkrasi[[#This Row],[PROCENJENO]]="",TBL_CvećeIUkrasi[[#This Row],[STVARNO]]=""),"",TBL_CvećeIUkrasi[[#This Row],[PROCENJENO]]-TBL_CvećeIUkrasi[[#This Row],[STVARNO]]) -> 
B32: Razni troškovi | C32: 100 RSD | E32: =IF(OR(TBL_CvećeIUkrasi[[#This Row],[PROCENJENO]]="",TBL_CvećeIUkrasi[[#This Row],[STVARNO]]=""),"",TBL_CvećeIUkrasi[[#This Row],[PROCENJENO]]-TBL_CvećeIUkrasi[[#This Row],[STVARNO]]) -> 
B33: UKUPNO ZA CVEĆE I UKRASE | C33: =SUBTOTAL(109,TBL_CvećeIUkrasi[PROCENJENO]) -> 3,000 RSD | D33: =SUBTOTAL(109,TBL_CvećeIUkrasi[STVARNO]) -> 0 RSD | E33: =TBL_CvećeIUkrasi[[#Totals],[PROCENJENO]]-TBL_CvećeIUkrasi[[#Totals],[STVARNO]] -> 3,000 RSD
B36: MUZIKA | C36: PROCENJENO | D36: STVARNO | E36: ODSTUPANJE
B37: Muzičari za ceremoniju | C37: 700 RSD | E37: =IF(OR(TBL_Muzika[[#This Row],[PROCENJENO]]="",TBL_Muzika[[#This Row],[STVARNO]]=""),"",TBL_Muzika[[#This Row],[PROCENJENO]]-TBL_Muzika[[#This Row],[STVARNO]]) -> 
B38: Muzičari za koktel čas | C38: 300 RSD | E38: =IF(OR(TBL_Muzika[[#This Row],[PROCENJENO]]="",TBL_Muzika[[#This Row],[STVARNO]]=""),"",TBL_Muzika[[#This Row],[PROCENJENO]]-TBL_Muzika[[#This Row],[STVARNO]]) -> 
B39: Bend na prijemu, di džej ili zabava | C39: 200 RSD | E39: =IF(OR(TBL_Muzika[[#This Row],[PROCENJENO]]="",TBL_Muzika[[#This Row],[STVARNO]]=""),"",TBL_Muzika[[#This Row],[PROCENJENO]]-TBL_Muzika[[#This Row],[STVARNO]]) -> 
B40: Ozvučenje ili iznajmljivanje podijuma za igru | C40: 400 RSD | E40: =IF(OR(TBL_Muzika[[#This Row],[PROCENJENO]]="",TBL_Muzika[[#This Row],[STVARNO]]=""),"",TBL_Muzika[[#This Row],[PROCENJENO]]-TBL_Muzika[[#This Row],[STVARNO]]) -> 
B41: Razni troškovi | C41: 200 RSD | E41: =IF(OR(TBL_Muzika[[#This Row],[PROCENJENO]]="",TBL_Muzika[[#This Row],[STVARNO]]=""),"",TBL_Muzika[[#This Row],[PROCENJENO]]-TBL_Muzika[[#This Row],[STVARNO]]) -> 
B42: UKUPNO ZA MUZIKU | C42: =SUBTOTAL(109,TBL_Muzika[PROCENJENO]) -> 1,800 RSD | D42: =SUBTOTAL(109,TBL_Muzika[STVARNO]) -> 0 RSD | E42: =TBL_Muzika[[#Totals],[PROCENJENO]]-TBL_Muzika[[#Totals],[STVARNO]] -> 1,800 RSD
B45: FOTOGRAFIJE I VIDEO ZAPISI | C45: PROCENJENO | D45: STVARNO | E45: ODSTUPANJE
B46: Fotografije | C46: 1,000 RSD | E46: =IF(OR(TBL_FotografijeIVideoZapisi[[#This Row],[PROCENJENO]]="",TBL_FotografijeIVideoZapisi[[#This Row],[STVARNO]]=""),"",TBL_FotografijeIVideoZapisi[[#This Row],[PROCENJENO]]-TBL_FotografijeIVideoZapisi[[#This Row],[STVARNO]]) -> 
B47: Videografija | C47: 800 RSD | E47: =IF(OR(TBL_FotografijeIVideoZapisi[[#This Row],[PROCENJENO]]="",TBL_FotografijeIVideoZapisi[[#This Row],[STVARNO]]=""),"",TBL_FotografijeIVideoZapisi[[#This Row],[PROCENJENO]]-TBL_FotografijeIVideoZapisi[[#This Row],[STVARNO]]) -> 
B48: Dodatna štampa i albumi | C48: 500 RSD | E48: =IF(OR(TBL_FotografijeIVideoZapisi[[#This Row],[PROCENJENO]]="",TBL_FotografijeIVideoZapisi[[#This Row],[STVARNO]]=""),"",TBL_FotografijeIVideoZapisi[[#This Row],[PROCENJENO]]-TBL_FotografijeIVideoZapisi[[#This Row],[STVARNO]]) -> 
B49: Razni troškovi | C49: 200 RSD | E49: =IF(OR(TBL_FotografijeIVideoZapisi[[#This Row],[PROCENJENO]]="",TBL_FotografijeIVideoZapisi[[#This Row],[STVARNO]]=""),"",TBL_FotografijeIVideoZapisi[[#This Row],[PROCENJENO]]-TBL_FotografijeIVideoZapisi[[#This Row],[STVARNO]]) -> 
B50: UKUPNO ZA FOTOGRAFIJE I VIDEO ZAPISE | C50: =SUBTOTAL(109,TBL_FotografijeIVideoZapisi[PROCENJENO]) -> 2,500 RSD | D50: =SUBTOTAL(109,TBL_FotografijeIVideoZapisi[STVARNO]) -> 0 RSD | E50: =TBL_FotografijeIVideoZapisi[[#Totals],[PROCENJENO]]-TBL_FotografijeIVideoZapisi[[#Totals],[STVARNO]] -> 2,500 RSD
B53: SUVENIRI I POKLONI | C53: PROCENJENO | D53: STVARNO | E53: ODSTUPANJE
B54: Pokloni dobrodošlice | C54: 700 RSD | E54: =IF(OR(TBL_SuveniriIPokloni[[#This Row],[PROCENJENO]]="",TBL_SuveniriIPokloni[[#This Row],[STVARNO]]=""),"",TBL_SuveniriIPokloni[[#This Row],[PROCENJENO]]-TBL_SuveniriIPokloni[[#This Row],[STVARNO]]) -> 
B55: Pokloni za žurku | C55: 200 RSD | E55: =IF(OR(TBL_SuveniriIPokloni[[#This Row],[PROCENJENO]]="",TBL_SuveniriIPokloni[[#This Row],[STVARNO]]=""),"",TBL_SuveniriIPokloni[[#This Row],[PROCENJENO]]-TBL_SuveniriIPokloni[[#This Row],[STVARNO]]) -> 
B56: Razni troškovi | C56: 200 RSD | E56: =IF(OR(TBL_SuveniriIPokloni[[#This Row],[PROCENJENO]]="",TBL_SuveniriIPokloni[[#This Row],[STVARNO]]=""),"",TBL_SuveniriIPokloni[[#This Row],[PROCENJENO]]-TBL_SuveniriIPokloni[[#This Row],[STVARNO]]) -> 
B57: UKUPNO ZA SUVENIRE I POKLONE | C57: =SUBTOTAL(109,TBL_SuveniriIPokloni[PROCENJENO]) -> 1,100 RSD | D57: =SUBTOTAL(109,TBL_SuveniriIPokloni[STVARNO]) -> 0 RSD | E57: =TBL_SuveniriIPokloni[[#Totals],[PROCENJENO]]-TBL_SuveniriIPokloni[[#Totals],[STVARNO]] -> 1,100 RSD
B60: CEREMONIJA | C60: PROCENJENO | D60: STVARNO | E60: ODSTUPANJE
B61: Naknada za lokaciju | C61: 500 RSD | E61: =IF(OR(TBL_Ceremonija[[#This Row],[PROCENJENO]]="",TBL_Ceremonija[[#This Row],[STVARNO]]=""),"",TBL_Ceremonija[[#This Row],[PROCENJENO]]-TBL_Ceremonija[[#This Row],[STVARNO]]) -> 
B62: Naknada za matičara ili crkvena donacija | C62: 200 RSD | E62: =IF(OR(TBL_Ceremonija[[#This Row],[PROCENJENO]]="",TBL_Ceremonija[[#This Row],[STVARNO]]=""),"",TBL_Ceremonija[[#This Row],[PROCENJENO]]-TBL_Ceremonija[[#This Row],[STVARNO]]) -> 
B63: Razni troškovi | C63: 100 RSD | E63: =IF(OR(TBL_Ceremonija[[#This Row],[PROCENJENO]]="",TBL_Ceremonija[[#This Row],[STVARNO]]=""),"",TBL_Ceremonija[[#This Row],[PROCENJENO]]-TBL_Ceremonija[[#This Row],[STVARNO]]) -> 
B64: UKUPNO ZA CEREMONIJU | C64: =SUBTOTAL(109,TBL_Ceremonija[PROCENJENO]) -> 800 RSD | D64: =SUBTOTAL(109,TBL_Ceremonija[STVARNO]) -> 0 RSD | E64: =TBL_Ceremonija[[#Totals],[PROCENJENO]]-TBL_Ceremonija[[#Totals],[STVARNO]] -> 800 RSD
B67: PRIBOR | C67: PROCENJENO | D67: STVARNO | E67: ODSTUPANJE
B68: „Zabeležite datum“ kartice | C68: 50 RSD | E68: =IF(OR(TBL_Pribor[[#This Row],[PROCENJENO]]="",TBL_Pribor[[#This Row],[STVARNO]]=""),"",TBL_Pribor[[#This Row],[PROCENJENO]]-TBL_Pribor[[#This Row],[STVARNO]]) -> 
B69: Pozivnice i potvrda dolaska | C69: 100 RSD | E69: =IF(OR(TBL_Pribor[[#This Row],[PROCENJENO]]="",TBL_Pribor[[#This Row],[STVARNO]]=""),"",TBL_Pribor[[#This Row],[PROCENJENO]]-TBL_Pribor[[#This Row],[STVARNO]]) -> 
B70: Programi | C70: 50 RSD | E70: =IF(OR(TBL_Pribor[[#This Row],[PROCENJENO]]="",TBL_Pribor[[#This Row],[STVARNO]]=""),"",TBL_Pribor[[#This Row],[PROCENJENO]]-TBL_Pribor[[#This Row],[STVARNO]]) -> 
B71: Kartice rasporeda sedenja i mesta | C71: 50 RSD | E71: =IF(OR(TBL_Pribor[[#This Row],[PROCENJENO]]="",TBL_Pribor[[#This Row],[STVARNO]]=""),"",TBL_Pribor[[#This Row],[PROCENJENO]]-TBL_Pribor[[#This Row],[STVARNO]]) -> 
B72: Karte menija | C72: 50 RSD | E72: =IF(OR(TBL_Pribor[[#This Row],[PROCENJENO]]="",TBL_Pribor[[#This Row],[STVARNO]]=""),"",TBL_Pribor[[#This Row],[PROCENJENO]]-TBL_Pribor[[#This Row],[STVARNO]]) -> 
B73: Zahvalnice | C73: 50 RSD | E73: =IF(OR(TBL_Pribor[[#This Row],[PROCENJENO]]="",TBL_Pribor[[#This Row],[STVARNO]]=""),"",TBL_Pribor[[#This Row],[PROCENJENO]]-TBL_Pribor[[#This Row],[STVARNO]]) -> 
B74: Poštarina | C74: 50 RSD | E74: =IF(OR(TBL_Pribor[[#This Row],[PROCENJENO]]="",TBL_Pribor[[#This Row],[STVARNO]]=""),"",TBL_Pribor[[#This Row],[PROCENJENO]]-TBL_Pribor[[#This Row],[STVARNO]]) -> 
B75: Razni troškovi | C75: 100 RSD | E75: =IF(OR(TBL_Pribor[[#This Row],[PROCENJENO]]="",TBL_Pribor[[#This Row],[STVARNO]]=""),"",TBL_Pribor[[#This Row],[PROCENJENO]]-TBL_Pribor[[#This Row],[STVARNO]]) -> 
B76: UKUPNO ZA PRIBOR | C76: =SUBTOTAL(109,TBL_Pribor[PROCENJENO]) -> 500 RSD | D76: =SUBTOTAL(109,TBL_Pribor[STVARNO]) -> 0 RSD | E76: =TBL_Pribor[[#Totals],[PROCENJENO]]-TBL_Pribor[[#Totals],[STVARNO]] -> 500 RSD
B79: BURME | C79: PROCENJENO | D79: STVARNO | E79: ODSTUPANJE
B80: burme | C80: 1,000 RSD | E80: =IF(OR(TBL_Burme[[#This Row],[PROCENJENO]]="",TBL_Burme[[#This Row],[STVARNO]]=""),"",TBL_Burme[[#This Row],[PROCENJENO]]-TBL_Burme[[#This Row],[STVARNO]]) -> 
B81: Dodaci za prstenje | C81: 100 RSD | E81: =IF(OR(TBL_Burme[[#This Row],[PROCENJENO]]="",TBL_Burme[[#This Row],[STVARNO]]=""),"",TBL_Burme[[#This Row],[PROCENJENO]]-TBL_Burme[[#This Row],[STVARNO]]) -> 
B82: UKUPNO ZA BURME | C82: =SUBTOTAL(109,TBL_Burme[PROCENJENO]) -> 1,100 RSD | D82: =SUBTOTAL(109,TBL_Burme[STVARNO]) -> 0 RSD | E82: =TBL_Burme[[#Totals],[PROCENJENO]]-TBL_Burme[[#Totals],[STVARNO]] -> 1,100 RSD
B85: PREVOZ | C85: PROCENJENO | D85: STVARNO | E85: ODSTUPANJE
B86: Iznajmljivanje automobila za mladence | C86: 100 RSD | E86: =IF(OR(TBL_Prevoz[[#This Row],[PROCENJENO]]="",TBL_Prevoz[[#This Row],[STVARNO]]=""),"",TBL_Prevoz[[#This Row],[PROCENJENO]]-TBL_Prevoz[[#This Row],[STVARNO]]) -> 
B87: Iznajmljivanje automobila za goste | C87: 100 RSD | E87: =IF(OR(TBL_Prevoz[[#This Row],[PROCENJENO]]="",TBL_Prevoz[[#This Row],[STVARNO]]=""),"",TBL_Prevoz[[#This Row],[PROCENJENO]]-TBL_Prevoz[[#This Row],[STVARNO]]) -> 
B88: Prevoz za goste koji žive van grada | C88: 100 RSD | E88: =IF(OR(TBL_Prevoz[[#This Row],[PROCENJENO]]="",TBL_Prevoz[[#This Row],[STVARNO]]=""),"",TBL_Prevoz[[#This Row],[PROCENJENO]]-TBL_Prevoz[[#This Row],[STVARNO]]) -> 
B89: Parking usluga | C89: 50 RSD | E89: =IF(OR(TBL_Prevoz[[#This Row],[PROCENJENO]]="",TBL_Prevoz[[#This Row],[STVARNO]]=""),"",TBL_Prevoz[[#This Row],[PROCENJENO]]-TBL_Prevoz[[#This Row],[STVARNO]]) -> 
B90: Razni troškovi | C90: 100 RSD | E90: =IF(OR(TBL_Prevoz[[#This Row],[PROCENJENO]]="",TBL_Prevoz[[#This Row],[STVARNO]]=""),"",TBL_Prevoz[[#This Row],[PROCENJENO]]-TBL_Prevoz[[#This Row],[STVARNO]]) -> 
B91: UKUPNO ZA PREVOZ | C91: =SUBTOTAL(109,TBL_Prevoz[PROCENJENO]) -> 450 RSD | D91: =SUBTOTAL(109,TBL_Prevoz[STVARNO]) -> 0 RSD | E91: =TBL_Prevoz[[#Totals],[PROCENJENO]]-TBL_Prevoz[[#Totals],[STVARNO]] -> 450 RSD
